[Event "FIDE World Junior U20-ch Girls 2025"]
[Site "Petrovac"]
[Date "2025.02.28"]
[Round "3.1"]
[White "Shukhman, Anna"]
[Black "Allahverdiyeva, Ayan"]
[Result "0-1"]
[Annotator "ChessBase"]
[ECO "B90"]
[WhiteElo "2365"]
[BlackElo "2284"]
[PlyCount "70"]
[EventDate "2025.02.23"]
[EventType "swiss"]
[EventCountry "MNE"]
[SourceTitle "playchess.com"]
[Source "ChessBase"]
[SourceQuality "1"]
[TimeControl "40/5400+30:1800+30"]

1. e4 {[%emt 0:00:03]} c5 {[%emt 0:00:20]} 2. Nf3 {[%emt 0:00:03]} d6 {[%emt 0:00:03]} 3. d4 {[%emt 0:00:02]} cxd4 {[%emt 0:00:04]} 4. Nxd4 {[%emt 0:00:01]} Nf6 {[%emt 0:00:05]} 5. Nc3 {[%emt 0:00:02]} a6 {[%emt 0:00:05]} 6. h3 {[%emt 0:00:02]} e5 {[%emt 0:00:03]} 7. Nb3 {[%emt 0:00:03]} Be7 {[%emt 0:00:03]} 8. g4 {[%emt 0:00:11]} h6 {[%emt 0:00:05]} 9. Be3 {[%emt 0:01:13]} b5 {[%emt 0:00:39]} 10. a4 {[%emt 0:00:00]} bxa4 {[%emt 0:00:21]} 11. Rxa4 {[%emt 0:00:00]} Bd7 {[%emt 0:00:05]} 12. Ra1 {[%emt 0:00:00]} Nc6 {[%emt 0:00:48]} 13. Nd5 {[%emt 0:02:00]} O-O {[%emt 0:00:24]} 14. Bg2 {[%emt 0:01:09]} a5 {[%emt 0:01:09]} 15. Bb6 {[%emt 0:18:31]} Qc8 {[%emt 0:08:33]} 16. Nxe7+ {[%emt 0:13:25]} Nxe7 {[%emt 0:00:05]} 17. O-O {[%emt 0:00:02]} a4 {[%emt 0:18:35]} 18. Qxd6 {[%emt 0:07:41]} Qxc2 {[%emt 0:01:13]} 19. Nd4 {[%emt 0:06:26]} exd4 {[%emt 0:23:26]} 20. Qxe7 {[%emt 0:05:19]} Ra6 {[%emt 0:15:33]} 21. Bxd4 {[%emt 0:10:58]} Re8 {[%emt 0:03:37]} 22. Qb4 {[%emt 0:04:59]} Nxe4 {[%emt 0:04:54]} 23. Rfe1 {[%emt 0:09:52]} Rae6 {[%emt 0:05:42]} 24. Rac1 {[%emt 0:00:18]} Qd3 {[%emt 0:07:22]} 25. Re3 {[%emt 0:01:58]} Qa6 {[%emt 0:04:41]} 26. Rc7 {[%emt 0:08:15]} Bc6 {[%emt 0:00:46]} 27. Bf1 {[%emt 0:02:07]} Qa8 {[%emt 0:00:23]} 28. Bg2 {[%emt 0:05:59]} Bd5 {[%emt 0:01:41]} 29. Ra7 {[%emt 0:01:33]} Qc8 {[%emt 0:01:54]} 30. Qxa4 {[%emt 0:00:26]} Qc1+ {[%emt 0:01:13]} 31. Kh2 {[%emt 0:00:03]} Bc6 {[%emt 0:00:57]} 32. Qa3 {[%emt 0:01:24]} Qd2 {[%emt 0:00:59]} 33. Bb6 {[%emt 0:02:23]} Nxf2 {[%emt 0:00:28]} 34. Rg3 {[%emt 0:00:23]} Re2 {[%emt 0:00:37]} 35. Qb4 {[%emt 0:00:40]} Qxb4 {[%emt 0:00:19]} 0-1

[Event "FIDE World Junior U20-ch Girls 2025"]
[Site "Petrovac"]
[Date "2025.02.28"]
[Round "3.2"]
[White "Nurman, Alua"]
[Black "Hrebenshchykova, Yelyzaveta"]
[Result "1/2-1/2"]
[Annotator "ChessBase"]
[ECO "C72"]
[WhiteElo "2336"]
[BlackElo "2259"]
[PlyCount "110"]
[EventDate "2025.02.23"]
[EventType "swiss"]
[EventCountry "MNE"]
[SourceTitle "playchess.com"]
[Source "ChessBase"]
[SourceQuality "1"]
[TimeControl "40/5400+30:1800+30"]

1. e4 {[%emt 0:00:02]} e5 {[%emt 0:00:03]} 2. Nf3 {[%emt 0:00:07]} Nc6 {[%emt 0:00:02]} 3. Bb5 {[%emt 0:00:07]} a6 {[%emt 0:00:06]} 4. Ba4 {[%emt 0:00:04]} d6 {[%emt 0:00:05]} 5. O-O {[%emt 0:07:33]} Bd7 {[%emt 0:00:30]} 6. c3 {[%emt 0:00:22]} g6 {[%emt 0:00:32]} 7. d4 {[%emt 0:01:15]} Bg7 {[%emt 0:00:11]} 8. h3 {[%emt 0:01:20]} Nf6 {[%emt 0:01:51]} 9. Re1 {[%emt 0:00:08]} O-O {[%emt 0:00:18]} 10. Bc2 {[%emt 0:01:46]} Re8 {[%emt 0:07:11]} 11. Nbd2 {[%emt 0:01:07]} b5 {[%emt 0:07:48]} 12. Nf1 {[%emt 0:01:15]} Na5 {[%emt 0:03:44]} 13. b3 {[%emt 0:10:08]} c5 {[%emt 0:01:25]} 14. d5 {[%emt 0:00:49]} Nh5 {[%emt 0:00:32]} 15. Bg5 {[%emt 0:13:06]} Qc7 {[%emt 0:07:25]} 16. Qd2 {[%emt 0:06:09]} Nb7 {[%emt 0:05:37]} 17. Ng3 {[%emt 0:07:43]} Nf4 {[%emt 0:06:13]} 18. Bxf4 {[%emt 0:11:07]} exf4 {[%emt 0:00:05]} 19. Ne2 {[%emt 0:06:06]} b4 {[%emt 0:06:06]} 20. Qxf4 {[%emt 0:09:47]} bxc3 {[%emt 0:02:32]} 21. Qe3 {[%emt 0:01:02]} Bb5 {[%emt 0:14:09]} 22. Nxc3 {[%emt 0:04:57]} Qa5 {[%emt 0:01:26]} 23. e5 {[%emt 0:00:53]} dxe5 {[%emt 0:09:39]} 24. g4 {[%emt 0:01:49]} e4 {[%emt 0:01:51]} 25. Nxe4 {[%emt 0:00:49]} Nd6 {[%emt 0:03:42]} 26. b4 {[%emt 0:06:30]} Qd8 {[%emt 0:06:14]} 27. a4 {[%emt 0:05:14]} Nxe4 {[%emt 0:02:58]} 28. Bxe4 {[%emt 0:00:27]} Bxa1 {[%emt 0:00:10]} 29. Rxa1 {[%emt 0:00:09]} Bc4 {[%emt 0:03:13]} 30. Rd1 {[%emt 0:01:49]} f5 {[%emt 0:06:00]} 31. gxf5 {[%emt 0:00:12]} gxf5 {[%emt 0:00:03]} 32. Ne5 {[%emt 0:01:07]} Qf6 {[%emt 0:01:34]} 33. f4 {[%emt 0:01:26]} fxe4 {[%emt 0:01:12]} 34. Nxc4 {[%emt 0:00:01]} Ra7 {[%emt 0:00:36]} 35. bxc5 {[%emt 0:00:20]} Kh8 {[%emt 0:02:00]} 36. Kh2 {[%emt 0:00:27]} Rg7 {[%emt 0:00:20]} 37. d6 {[%emt 0:00:52]} Reg8 {[%emt 0:00:23]} 38. Rd2 {[%emt 0:00:41]} Qa1 {[%emt 0:01:00]} 39. d7 {[%emt 0:00:33]} Qf1 {[%emt 0:00:13]} 40. Qf2 {[%emt 0:00:38]} Qxf2+ {[%emt 0:00:52]} 41. Rxf2 {[%emt 0:30:01]} Rxd7 {[%emt 0:30:05]} 42. Nd6 {[%emt 0:00:00]} e3 {[%emt 0:00:00]} 43. Re2 {[%emt 0:00:00]} Rc7 {[%emt 0:00:00]} 44. Rxe3 {[%emt 0:00:00]} Rxc5 {[%emt 0:00:00]} 45. Re2 {[%emt 0:00:00]} Rc3 {[%emt 0:00:00]} 46. f5 {[%emt 0:00:00]} Rf8 {[%emt 0:00:00]} 47. f6 {[%emt 0:00:00]} h6 {[%emt 0:00:00]} 48. Re6 {[%emt 0:00:00]} Rb8 {[%emt 0:00:00]} 49. Re2 {[%emt 0:00:00]} Rc6 {[%emt 0:00:00]} 50. f7 {[%emt 0:01:05]} Rf8 {[%emt 0:00:23]} 51. Re8 {[%emt 0:00:48]} Kg7 {[%emt 0:02:08]} 52. Re6 {[%emt 0:00:02]} Rc2+ {[%emt 0:00:04]} 53. Kg3 {[%emt 0:00:20]} Ra2 {[%emt 0:01:47]} 54. Nf5+ {[%emt 0:00:18]} Kxf7 {[%emt 0:00:10]} 55. Rxa6 {[%emt 0:00:39]} h5 {[%emt 0:01:11]} 1/2-1/2

[Event "FIDE World Junior U20-ch Girls 2025"]
[Site "Petrovac"]
[Date "2025.02.28"]
[Round "3.3"]
[White "Karmanova, Olga Dm."]
[Black "Kairbekova, Amina"]
[Result "1/2-1/2"]
[Annotator "ChessBase"]
[ECO "B70"]
[WhiteElo "2292"]
[BlackElo "2336"]
[PlyCount "32"]
[EventDate "2025.02.23"]
[EventType "swiss"]
[EventCountry "MNE"]
[SourceTitle "playchess.com"]
[Source "ChessBase"]
[SourceQuality "1"]
[TimeControl "40/5400+30:1800+30"]

1. e4 {[%emt 0:00:04]} c5 {[%emt 0:00:02]} 2. Nf3 {[%emt 0:00:06]} d6 {[%emt 0:00:03]} 3. d4 {[%emt 0:00:07]} cxd4 {[%emt 0:00:03]} 4. Nxd4 {[%emt 0:00:05]} Nf6 {[%emt 0:00:03]} 5. Nc3 {[%emt 0:00:07]} g6 {[%emt 0:00:03]} 6. h3 {[%emt 0:04:47]} Nc6 {[%emt 0:03:10]} 7. Be3 {[%emt 0:00:25]} Bg7 {[%emt 0:00:00]} 8. Qd2 {[%emt 0:06:06]} O-O {[%emt 0:02:33]} 9. O-O-O {[%emt 0:11:49]} d5 {[%emt 0:04:56]} 10. exd5 {[%emt 0:14:22]} Nxd5 {[%emt 0:00:27]} 11. Nxc6 {[%emt 0:00:46]} bxc6 {[%emt 0:00:18]} 12. Nxd5 {[%emt 0:05:24]} cxd5 {[%emt 0:00:09]} 13. Qxd5 {[%emt 0:00:07]} Rb8 {[%emt 0:01:59]} 14. Qxd8 {[%emt 0:05:03]} Bxb2+ {[%emt 0:00:06]} 15. Kb1 {[%emt 0:00:49]} Bd4+ {[%emt 0:00:08]} 16. Kc1 {[%emt 0:00:04]} Bb2+ {[%emt 0:00:10]} 1/2-1/2

[Event "FIDE World Junior U20-ch Girls 2025"]
[Site "Petrovac"]
[Date "2025.02.27"]
[Round "3.4"]
[White "Savitha Shri B"]
[Black "Omonova, Umida"]
[Result "1/2-1/2"]
[Annotator "ChessBase"]
[ECO "B40"]
[WhiteElo "2332"]
[BlackElo "2228"]
[PlyCount "52"]
[EventDate "2025.02.23"]
[EventType "swiss"]
[EventCountry "MNE"]
[SourceTitle "playchess.com"]
[Source "ChessBase"]
[SourceQuality "1"]
[TimeControl "40/5400+30:1800+30"]

1. e4 {[%emt 0:00:14]} c5 {[%emt 0:01:10]} 2. Nf3 {[%emt 0:00:08]} e6 {[%emt 0:00:11]} 3. d4 {[%emt 0:00:23]} cxd4 {[%emt 0:00:07]} 4. Nxd4 {[%emt 0:00:06]} Nf6 {[%emt 0:00:11]} 5. Nc3 {[%emt 0:00:35]} Nc6 {[%emt 0:00:07]} 6. a3 {[%emt 0:06:13]} d5 {[%emt 0:03:43]} 7. exd5 {[%emt 0:02:09]} exd5 {[%emt 0:00:57]} 8. Bb5 {[%emt 0:03:06]} Bd7 {[%emt 0:02:33]} 9. O-O {[%emt 0:05:37]} Be7 {[%emt 0:01:32]} 10. Be3 {[%emt 0:14:19]} O-O {[%emt 0:02:01]} 11. h3 {[%emt 0:00:16]} Ne5 {[%emt 0:07:45]} 12. Bf4 {[%emt 0:04:40]} Ng6 {[%emt 0:02:05]} 13. Bg3 {[%emt 0:02:07]} Bc5 {[%emt 0:10:18]} 14. Bxd7 {[%emt 0:04:24]} Qxd7 {[%emt 0:00:09]} 15. Nb3 {[%emt 0:00:03]} Bb6 {[%emt 0:01:00]} 16. Qf3 {[%emt 0:00:09]} Rfd8 {[%emt 0:08:37]} 17. Rad1 {[%emt 0:02:38]} Rac8 {[%emt 0:06:05]} 18. Rd2 {[%emt 0:06:42]} Qe6 {[%emt 0:07:43]} 19. Rfd1 {[%emt 0:12:39]} Ne4 {[%emt 0:05:08]} 20. Rxd5 {[%emt 0:01:22]} Rxd5 {[%emt 0:00:45]} 21. Nxd5 {[%emt 0:00:06]} Nxg3 {[%emt 0:01:09]} 22. Qxg3 {[%emt 0:09:35]} Rxc2 {[%emt 0:01:23]} 23. Nxb6 {[%emt 0:03:07]} Qxb6 {[%emt 0:03:17]} 24. Rd6 {[%emt 0:01:00]} Qc7 {[%emt 0:03:03]} 25. Rd2 {[%emt 0:00:47]} Qe5 {[%emt 0:04:26]} 26. Qf4 {[%emt 0:04:56]} Qxf4 {[%emt 0:09:59]} 1/2-1/2

[Event "FIDE World Junior U20-ch Girls 2025"]
[Site "Petrovac"]
[Date "2025.02.28"]
[Round "3.4"]
[White "Savitha Shri B"]
[Black "Omonova, Umida"]
[Result "1/2-1/2"]
[Annotator "ChessBase"]
[ECO "B40"]
[WhiteElo "2332"]
[BlackElo "2228"]
[PlyCount "61"]
[EventDate "2025.02.23"]
[EventType "swiss"]
[EventCountry "MNE"]
[SourceTitle "playchess.com"]
[Source "ChessBase"]
[SourceQuality "1"]
[TimeControl "40/5400+30:1800+30"]

1. e4 {[%emt 0:00:14]} c5 {[%emt 0:01:10]} 2. Nf3 {[%emt 0:00:08]} e6 {[%emt 0:00:11]} 3. d4 {[%emt 0:00:23]} cxd4 {[%emt 0:00:07]} 4. Nxd4 {[%emt 0:00:06]} Nf6 {[%emt 0:00:11]} 5. Nc3 {[%emt 0:00:35]} Nc6 {[%emt 0:00:07]} 6. a3 {[%emt 0:06:13]} d5 {[%emt 0:03:43]} 7. exd5 {[%emt 0:02:09]} exd5 {[%emt 0:00:57]} 8. Bb5 {[%emt 0:03:06]} Bd7 {[%emt 0:02:33]} 9. O-O {[%emt 0:05:37]} Be7 {[%emt 0:01:32]} 10. Be3 {[%emt 0:14:19]} O-O {[%emt 0:02:01]} 11. h3 {[%emt 0:00:16]} Ne5 {[%emt 0:07:45]} 12. Bf4 {[%emt 0:04:40]} Ng6 {[%emt 0:02:05]} 13. Bg3 {[%emt 0:02:07]} Bc5 {[%emt 0:10:18]} 14. Bxd7 {[%emt 0:04:24]} Qxd7 {[%emt 0:00:09]} 15. Nb3 {[%emt 0:00:03]} Bb6 {[%emt 0:01:00]} 16. Qf3 {[%emt 0:00:09]} Rfd8 {[%emt 0:08:37]} 17. Rad1 {[%emt 0:02:38]} Rac8 {[%emt 0:06:05]} 18. Rd2 {[%emt 0:06:42]} Qe6 {[%emt 0:07:43]} 19. Rfd1 {[%emt 0:12:39]} Ne4 {[%emt 0:05:08]} 20. Rxd5 {[%emt 0:01:22]} Rxd5 {[%emt 0:00:45]} 21. Nxd5 {[%emt 0:00:06]} Nxg3 {[%emt 0:01:09]} 22. Qxg3 {[%emt 0:09:35]} Rxc2 {[%emt 0:01:23]} 23. Nxb6 {[%emt 0:03:07]} Qxb6 {[%emt 0:03:17]} 24. Rd6 {[%emt 0:01:00]} Qc7 {[%emt 0:03:03]} 25. Rd2 {[%emt 0:00:47]} Qxg3 {[%emt 0:03:57]} 26. fxg3 {[%emt 0:04:54]} Rxd2 27. Nxd2 Ne5 28. b4 f5 29. Kf2 Kf7 30. Ke3 Ke6 31. Kd4 1/2-1/2

[Event "FIDE World Junior U20-ch Girls 2025"]
[Site "Petrovac"]
[Date "2025.02.28"]
[Round "3.5"]
[White "Mungunzul, Bat-Erdene"]
[Black "Velpula Sarayu"]
[Result "1/2-1/2"]
[Annotator "ChessBase"]
[ECO "D30"]
[WhiteElo "2268"]
[BlackElo "2315"]
[PlyCount "50"]
[EventDate "2025.02.23"]
[EventType "swiss"]
[EventCountry "MNE"]
[SourceTitle "playchess.com"]
[Source "ChessBase"]
[SourceQuality "1"]
[TimeControl "40/5400+30:1800+30"]

1. d4 {[%emt 0:00:04]} Nf6 {[%emt 0:00:28]} 2. c4 {[%emt 0:00:07]} e6 {[%emt 0:00:29]} 3. Nf3 {[%emt 0:01:12]} d5 {[%emt 0:00:28]} 4. Bg5 {[%emt 0:01:18]} Nbd7 {[%emt 0:05:17]} 5. Nc3 {[%emt 0:02:24]} Bb4 {[%emt 0:01:22]} 6. Qb3 {[%emt 0:04:56]} c5 {[%emt 0:01:37]} 7. cxd5 {[%emt 0:14:37]} exd5 {[%emt 0:00:41]} 8. a3 {[%emt 0:00:23]} Bxc3+ {[%emt 0:13:03]} 9. bxc3 {[%emt 0:13:03]} Qa5 {[%emt 0:07:06]} 10. Nd2 {[%emt 0:01:58]} O-O {[%emt 0:04:59]} 11. dxc5 {[%emt 0:12:44]} Qxc5 {[%emt 0:06:24]} 12. Be3 {[%emt 0:03:28]} Qe7 {[%emt 0:08:35]} 13. Bd4 {[%emt 0:04:26]} Nc5 {[%emt 0:04:04]} 14. Qb1 {[%emt 0:11:51]} Bg4 {[%emt 0:12:33]} 15. e3 {[%emt 0:06:05]} Rac8 {[%emt 0:12:47]} 16. Bd3 {[%emt 0:07:47]} Nfe4 {[%emt 0:02:36]} 17. Bc2 {[%emt 0:05:03]} Bf5 {[%emt 0:04:15]} 18. Nxe4 {[%emt 0:02:53]} Nxe4 {[%emt 0:01:09]} 19. Qb3 {[%emt 0:02:00]} Qh4 {[%emt 0:07:01]} 20. Bxe4 {[%emt 0:01:41]} Bxe4 {[%emt 0:00:12]} 21. O-O {[%emt 0:00:16]} Bxg2 {[%emt 0:03:55]} 22. Kxg2 {[%emt 0:01:10]} Qg4+ {[%emt 0:00:24]} 23. Kh1 {[%emt 0:00:01]} Qf3+ {[%emt 0:00:01]} 24. Kg1 {[%emt 0:00:09]} Qg4+ {[%emt 0:00:41]} 25. Kh1 {[%emt 0:00:11]} Qf3+ {[%emt 0:00:05]} 1/2-1/2

[Event "FIDE World Junior U20-ch Girls 2025"]
[Site "Petrovac"]
[Date "2025.02.28"]
[Round "3.6"]
[White "Toncheva, Nadya"]
[Black "Mgeladze, Kesaria"]
[Result "1/2-1/2"]
[Annotator "ChessBase"]
[ECO "B22"]
[WhiteElo "2311"]
[BlackElo "2219"]
[PlyCount "101"]
[EventDate "2025.02.23"]
[EventType "swiss"]
[EventCountry "MNE"]
[SourceTitle "playchess.com"]
[Source "ChessBase"]
[SourceQuality "1"]
[TimeControl "40/5400+30:1800+30"]

1. e4 {[%emt 0:00:03]} c5 {[%emt 0:00:04]} 2. c3 {[%emt 0:00:07]} Nf6 {[%emt 0:00:19]} 3. e5 {[%emt 0:00:05]} Nd5 {[%emt 0:00:04]} 4. Nf3 {[%emt 0:00:05]} Nc6 {[%emt 0:00:20]} 5. Bc4 {[%emt 0:00:06]} Nb6 {[%emt 0:00:22]} 6. Bb3 {[%emt 0:00:05]} c4 {[%emt 0:00:50]} 7. Bc2 {[%emt 0:00:04]} d6 {[%emt 0:00:36]} 8. exd6 {[%emt 0:00:06]} Qxd6 {[%emt 0:00:06]} 9. O-O {[%emt 0:00:05]} g6 {[%emt 0:03:11]} 10. b3 {[%emt 0:03:37]} Bg7 {[%emt 0:04:50]} 11. Na3 {[%emt 0:01:07]} cxb3 {[%emt 0:01:40]} 12. axb3 {[%emt 0:00:07]} O-O {[%emt 0:04:41]} 13. d4 {[%emt 0:00:49]} Rd8 {[%emt 0:05:17]} 14. Bg5 {[%emt 0:08:39]} Be6 {[%emt 0:06:56]} 15. Re1 {[%emt 0:02:36]} Qd7 {[%emt 0:06:16]} 16. Qd2 {[%emt 0:05:11]} Rac8 {[%emt 0:15:52]} 17. Bh6 {[%emt 0:04:17]} Bd5 {[%emt 0:09:09]} 18. Bd1 {[%emt 0:09:40]} Bxf3 {[%emt 0:07:12]} 19. Bxf3 {[%emt 0:00:09]} e5 {[%emt 0:00:28]} 20. Bxg7 {[%emt 0:02:31]} Kxg7 {[%emt 0:00:05]} 21. Nc2 {[%emt 0:11:19]} exd4 {[%emt 0:00:38]} 22. Nxd4 {[%emt 0:00:32]} Nxd4 {[%emt 0:02:56]} 23. cxd4 {[%emt 0:00:48]} Qxd4 {[%emt 0:01:43]} 24. Qxd4+ {[%emt 0:10:39]} Rxd4 {[%emt 0:00:05]} 25. Rxa7 {[%emt 0:04:32]} Rc3 {[%emt 0:01:47]} 26. Rb1 {[%emt 0:08:04]} Rb4 {[%emt 0:05:50]} 27. h4 {[%emt 0:02:55]} Rxh4 {[%emt 0:06:36]} 28. Rxb7 {[%emt 0:00:16]} Rb4 {[%emt 0:00:05]} 29. Bd1 {[%emt 0:02:01]} Nd5 {[%emt 0:03:30]} 30. Rxb4 {[%emt 0:01:54]} Nxb4 {[%emt 0:00:05]} 31. Be2 {[%emt 0:00:30]} h5 {[%emt 0:02:38]} 32. Bc4 {[%emt 0:00:59]} Nc6 {[%emt 0:01:45]} 33. Be2 {[%emt 0:07:15]} Nb4 {[%emt 0:01:07]} 34. Kf1 {[%emt 0:00:14]} h4 {[%emt 0:01:40]} 35. Bc4 {[%emt 0:01:08]} h3 {[%emt 0:03:34]} 36. gxh3 {[%emt 0:00:11]} Rxh3 {[%emt 0:00:03]} 37. Kg2 {[%emt 0:02:49]} Rc3 {[%emt 0:00:07]} 38. Rd1 {[%emt 0:03:37]} Nc6 {[%emt 0:03:03]} 39. Rd5 {[%emt 0:00:04]} f6 {[%emt 0:02:00]} 40. f4 {[%emt 0:08:12]} g5 {[%emt 0:02:18]} 41. Rd7+ {[%emt 0:04:13]} Kh6 {[%emt 0:13:48]} 42. Rd6 {[%emt 0:00:24]} Na5 {[%emt 0:00:05]} 43. fxg5+ {[%emt 0:00:19]} Kg6 {[%emt 0:02:22]} 44. Bg8 {[%emt 0:11:15]} Kxg5 {[%emt 0:01:50]} 45. Rb6 {[%emt 0:03:49]} f5 {[%emt 0:02:07]} 46. Bd5 {[%emt 0:00:30]} Kf4 {[%emt 0:01:38]} 47. Kf2 {[%emt 0:05:22]} Rc2+ {[%emt 0:02:11]} 48. Kf1 {[%emt 0:00:14]} Ke3 {[%emt 0:01:41]} 49. Rb5 {[%emt 0:02:42]} Nc6 {[%emt 0:00:09]} 50. Bxc6 {[%emt 0:00:04]} Rxc6 {[%emt 0:00:08]} 51. Rxf5 {[%emt 0:00:05]} 1/2-1/2

[Event "FIDE World Junior U20-ch Girls 2025"]
[Site "Petrovac"]
[Date "2025.02.28"]
[Round "3.7"]
[White "Balabayeva, Xeniya"]
[Black "Zhurova, Anna"]
[Result "0-1"]
[Annotator "ChessBase"]
[ECO "D35"]
[WhiteElo "2264"]
[BlackElo "2307"]
[PlyCount "111"]
[EventDate "2025.02.23"]
[EventType "swiss"]
[EventCountry "MNE"]
[SourceTitle "playchess.com"]
[Source "ChessBase"]
[SourceQuality "1"]
[TimeControl "40/5400+30:1800+30"]

1. d4 {[%emt 0:00:03]} d5 {[%emt 0:00:15]} 2. c4 {[%emt 0:00:09]} e6 {[%emt 0:00:24]} 3. Nc3 {[%emt 0:00:08]} Nf6 {[%emt 0:00:27]} 4. cxd5 {[%emt 0:00:09]} exd5 {[%emt 0:00:11]} 5. Bg5 {[%emt 0:00:07]} Bb4 {[%emt 0:02:05]} 6. e3 {[%emt 0:00:26]} h6 {[%emt 0:00:12]} 7. Bxf6 {[%emt 0:07:31]} Qxf6 {[%emt 0:00:07]} 8. Qb3 {[%emt 0:00:04]} Qd6 {[%emt 0:03:02]} 9. a3 {[%emt 0:00:06]} Bxc3+ {[%emt 0:00:57]} 10. Qxc3 {[%emt 0:00:07]} O-O {[%emt 0:01:00]} 11. Qb4 {[%emt 0:10:17]} Qg6 {[%emt 0:03:53]} 12. Rc1 {[%emt 0:05:36]} b6 {[%emt 0:07:30]} 13. Nf3 {[%emt 0:03:29]} c5 {[%emt 0:03:20]} 14. dxc5 {[%emt 0:13:02]} Na6 {[%emt 0:02:14]} 15. Qf4 {[%emt 0:07:32]} Nxc5 {[%emt 0:03:17]} 16. Ne5 {[%emt 0:05:30]} Qe6 {[%emt 0:02:50]} 17. Nf3 {[%emt 0:02:03]} Qg6 {[%emt 0:16:59]} 18. Ne5 {[%emt 0:14:31]} Qd6 {[%emt 0:07:07]} 19. Nd3 {[%emt 0:01:27]} Qe7 {[%emt 0:03:14]} 20. Qb4 {[%emt 0:08:11]} Nxd3+ {[%emt 0:08:30]} 21. Bxd3 {[%emt 0:00:07]} Qg5 {[%emt 0:00:22]} 22. Kf1 {[%emt 0:03:21]} Bf5 {[%emt 0:02:10]} 23. Qd4 {[%emt 0:05:40]} Rac8 {[%emt 0:05:00]} 24. Rd1 {[%emt 0:00:46]} Qg6 {[%emt 0:04:49]} 25. g3 {[%emt 0:02:36]} Bh3+ {[%emt 0:02:08]} 26. Ke2 {[%emt 0:00:32]} Qh5+ {[%emt 0:03:34]} 27. Kd2 {[%emt 0:00:26]} Bg2 {[%emt 0:01:17]} 28. Rhg1 {[%emt 0:01:13]} Bf3 {[%emt 0:02:13]} 29. Rdf1 {[%emt 0:01:40]} Be4 {[%emt 0:01:07]} 30. h4 {[%emt 0:01:27]} Bxd3 {[%emt 0:00:48]} 31. Qxd3 {[%emt 0:01:13]} Qf3 {[%emt 0:02:50]} 32. g4 {[%emt 0:03:09]} Rfd8 {[%emt 0:04:12]} 33. Qf5 {[%emt 0:02:52]} Qe4 {[%emt 0:03:19]} 34. Rc1 {[%emt 0:00:24]} Rc4 {[%emt 0:02:02]} 35. Qxe4 {[%emt 0:01:23]} dxe4+ {[%emt 0:00:29]} 36. Ke2 {[%emt 0:00:04]} Rdc8 {[%emt 0:00:31]} 37. Rxc4 {[%emt 0:00:19]} Rxc4 {[%emt 0:00:04]} 38. Rd1 {[%emt 0:00:51]} Rc2+ {[%emt 0:02:20]} 39. Rd2 {[%emt 0:00:16]} Rxd2+ {[%emt 0:02:20]} 40. Kxd2 {[%emt 0:00:02]} h5 {[%emt 0:00:47]} 41. gxh5 {[%emt 0:25:04]} Kh7 {[%emt 0:00:57]} 42. Kc3 {[%emt 0:00:04]} Kh6 {[%emt 0:00:20]} 43. Kd4 {[%emt 0:00:07]} Kxh5 {[%emt 0:00:17]} 44. Kxe4 {[%emt 0:00:05]} Kxh4 {[%emt 0:00:46]} 45. Kf4 {[%emt 0:07:28]} Kh3 {[%emt 0:08:30]} 46. Kf3 {[%emt 0:00:21]} g5 {[%emt 0:09:33]} 47. a4 {[%emt 0:00:52]} f5 {[%emt 0:05:55]} 48. e4 {[%emt 0:01:00]} g4+ {[%emt 0:01:03]} 49. Ke3 {[%emt 0:00:25]} fxe4 {[%emt 0:00:04]} 50. Kxe4 {[%emt 0:00:04]} Kg2 {[%emt 0:00:02]} 51. Ke3 {[%emt 0:00:30]} Kf1 {[%emt 0:00:16]} 52. b4 {[%emt 0:00:27]} a6 {[%emt 0:03:10]} 53. b5 {[%emt 0:00:49]} axb5 {[%emt 0:00:46]} 54. axb5 {[%emt 0:00:05]} Ke1 {[%emt 0:00:03]} 55. f4 {[%emt 0:00:29]} Kf1 {[%emt 0:00:02]} 56. Kd4 {[%emt 0:00:56]} 0-1

[Event "FIDE World Junior U20-ch Girls 2025"]
[Site "Petrovac"]
[Date "2025.02.28"]
[Round "3.8"]
[White "Wang, Chuqiao"]
[Black "Gaal, Zsoka"]
[Result "0-1"]
[Annotator "ChessBase"]
[ECO "E17"]
[WhiteElo "2227"]
[BlackElo "2404"]
[PlyCount "110"]
[EventDate "2025.02.23"]
[EventType "swiss"]
[EventCountry "MNE"]
[SourceTitle "playchess.com"]
[Source "ChessBase"]
[SourceQuality "1"]
[TimeControl "40/5400+30:1800+30"]

1. d4 {[%emt 0:00:05]} Nf6 {[%emt 0:00:12]} 2. c4 {[%emt 0:00:12]} e6 {[%emt 0:00:07]} 3. Nf3 {[%emt 0:00:11]} b6 {[%emt 0:00:45]} 4. g3 {[%emt 0:00:35]} Bb7 {[%emt 0:00:07]} 5. Bg2 {[%emt 0:00:24]} Be7 {[%emt 0:00:10]} 6. O-O {[%emt 0:00:16]} O-O {[%emt 0:00:08]} 7. Re1 {[%emt 0:02:52]} d5 {[%emt 0:00:41]} 8. cxd5 {[%emt 0:00:35]} exd5 {[%emt 0:00:07]} 9. Nc3 {[%emt 0:00:39]} Nbd7 {[%emt 0:00:40]} 10. Bf4 {[%emt 0:00:57]} c5 {[%emt 0:01:07]} 11. Rc1 {[%emt 0:18:23]} Ne4 {[%emt 0:00:53]} 12. dxc5 {[%emt 0:00:41]} Bxc5 {[%emt 0:12:38]} 13. Nd4 {[%emt 0:06:40]} Ndf6 {[%emt 0:07:00]} 14. a3 {[%emt 0:04:47]} Rc8 {[%emt 0:11:15]} 15. Nxe4 {[%emt 0:18:25]} dxe4 {[%emt 0:01:15]} 16. Nf5 {[%emt 0:00:55]} Re8 {[%emt 0:28:27]} 17. Nd6 {[%emt 0:19:48]} Bxd6 {[%emt 0:00:35]} 18. Qxd6 {[%emt 0:00:30]} Nd5 {[%emt 0:00:54]} 19. Qxd8 {[%emt 0:05:57]} Rcxd8 {[%emt 0:01:11]} 20. Red1 {[%emt 0:01:47]} f6 {[%emt 0:07:49]} 21. Bf1 {[%emt 0:03:31]} g5 {[%emt 0:06:51]} 22. Bd2 {[%emt 0:00:41]} Ba6 {[%emt 0:02:59]} 23. e3 {[%emt 0:01:03]} Bxf1 {[%emt 0:00:09]} 24. Kxf1 {[%emt 0:00:05]} Kf7 {[%emt 0:02:30]} 25. Bc3 {[%emt 0:01:46]} h5 {[%emt 0:01:52]} 26. Rd4 {[%emt 0:01:16]} f5 {[%emt 0:00:43]} 27. Rcd1 {[%emt 0:01:27]} Ke6 {[%emt 0:00:06]} 28. h3 {[%emt 0:02:50]} g4 {[%emt 0:03:16]} 29. hxg4 {[%emt 0:01:53]} hxg4 {[%emt 0:00:06]} 30. Ke1 {[%emt 0:01:31]} Re7 {[%emt 0:01:03]} 31. Rc4 {[%emt 0:01:46]} Rh7 {[%emt 0:00:10]} 32. Rc6+ {[%emt 0:00:24]} Rd6 {[%emt 0:00:12]} 33. Rxd6+ {[%emt 0:00:25]} Kxd6 {[%emt 0:00:06]} 34. Ke2 {[%emt 0:00:37]} Rc7 {[%emt 0:03:46]} 35. Bd4 {[%emt 0:00:36]} Rc2+ {[%emt 0:00:39]} 36. Rd2 {[%emt 0:00:03]} Rc1 {[%emt 0:00:51]} 37. Rd1 {[%emt 0:00:12]} Rxd1 {[%emt 0:00:10]} 38. Kxd1 {[%emt 0:00:01]} a5 {[%emt 0:01:36]} 39. b3 {[%emt 0:00:20]} b5 {[%emt 0:02:20]} 40. Kc2 {[%emt 0:00:42]} Kc6 {[%emt 0:01:39]} 41. Bc3 {[%emt 0:31:21]} a4 {[%emt 0:06:59]} 42. Bd4 {[%emt 0:00:00]} Nc7 {[%emt 0:00:07]} 43. Kc3 {[%emt 0:00:00]} Nd5+ {[%emt 0:00:08]} 44. Kc2 {[%emt 0:00:00]} Nc7 {[%emt 0:00:28]} 45. Kc3 {[%emt 0:00:00]} axb3 {[%emt 0:02:30]} 46. Kxb3 {[%emt 0:00:00]} Ne6 {[%emt 0:00:07]} 47. Kc2 {[%emt 0:00:00]} Nxd4+ {[%emt 0:03:26]} 48. exd4 {[%emt 0:00:00]} Kd5 {[%emt 0:00:30]} 49. Kc3 {[%emt 0:00:00]} f4 {[%emt 0:00:25]} 50. gxf4 {[%emt 0:00:00]} e3 {[%emt 0:00:07]} 51. Kd3 {[%emt 0:00:00]} exf2 {[%emt 0:00:14]} 52. Ke2 {[%emt 0:00:00]} Kxd4 {[%emt 0:00:16]} 53. f5 {[%emt 0:00:00]} Ke5 {[%emt 0:00:06]} 54. Kxf2 {[%emt 0:00:00]} Kxf5 {[%emt 0:00:05]} 55. Kg3 {[%emt 0:00:00]} Ke5 {[%emt 0:00:10]} 0-1